[Event "Titled Tuesday Blitz July 05 Early 2022"]
[White "Preotu, Razvan"]
[Black "Sjugirov, Sanan"]
[WhiteFideId "2613280"]
[BlackFideId "4189302"]
[WhiteElo "2407"]
[BlackElo "2609"]
[Result "0-1"]
[Round "07"]
[TimeControl "180+1"]
[Date "2022.07.05"]
[WhiteClock "0:00:01"]
[BlackClock "0:00:36"]

1. e4 {[%clk 0:03:00]}  c6 {[%clk 0:02:52]} 2. Nc3 {[%clk 0:03:00]}  d5 {[%clk 0:02:53]} 3. Nf3 {[%clk 0:03:00]}  Bg4 {[%clk 0:02:52]} 4. h3 {[%clk 0:03:00]}  Bxf3 {[%clk 0:02:53]} 5. Qxf3 {[%clk 0:03:01]}  e6 {[%clk 0:02:54]} 6. Be2 {[%clk 0:03:01]}  Bc5 {[%clk 0:02:48]} 7. O-O {[%clk 0:03:01]}  Ne7 {[%clk 0:02:46]} 8. Na4 {[%clk 0:02:54]}  Bd6 {[%clk 0:02:45]} 9. d4 {[%clk 0:02:54]}  Nd7 {[%clk 0:02:41]} 10. Nc3 {[%clk 0:02:24]}  O-O {[%clk 0:02:40]} 11. Bd3 {[%clk 0:02:12]}  a6 {[%clk 0:02:39]} 12. e5 {[%clk 0:02:11]}  Bc7 {[%clk 0:02:39]} 13. Ne2 {[%clk 0:02:09]}  c5 {[%clk 0:02:26]} 14. c3 {[%clk 0:02:07]}  Qe8 {[%clk 0:02:12]} 15. Nf4 {[%clk 0:02:01]}  Ng6 {[%clk 0:02:01]} 16. Nxg6 {[%clk 0:01:45]}  fxg6 {[%clk 0:02:02]} 17. Qg4 {[%clk 0:01:45]}  cxd4 {[%clk 0:01:57]} 18. cxd4 {[%clk 0:01:45]}  Nb8 {[%clk 0:01:55]} 19. Be3 {[%clk 0:01:45]}  Nc6 {[%clk 0:01:56]} 20. a3 {[%clk 0:01:41]}  Rc8 {[%clk 0:01:55]} 21. g3 {[%clk 0:01:39]}  Qf7 {[%clk 0:01:55]} 22. Kg2 {[%clk 0:01:39]}  Bb6 {[%clk 0:01:55]} 23. Rad1 {[%clk 0:01:34]}  Ne7 {[%clk 0:01:52]} 24. Bb1 {[%clk 0:01:01]}  Nf5 {[%clk 0:01:51]} 25. h4 {[%clk 0:01:00]}  Rc4 {[%clk 0:01:45]} 26. Bd3 {[%clk 0:00:36]}  Rc7 {[%clk 0:01:45]} 27. Bb1 {[%clk 0:00:35]}  Ba7 {[%clk 0:01:43]} 28. Bxf5 {[%clk 0:00:20]}  gxf5 {[%clk 0:01:43]} 29. Qf3 {[%clk 0:00:20]}  Rfc8 {[%clk 0:01:43]} 30. Rd3 {[%clk 0:00:15]}  Rc2 {[%clk 0:01:42]} 31. Rb3 {[%clk 0:00:15]}  b5 {[%clk 0:01:42]} 32. Ra1 {[%clk 0:00:16]}  Qd7 {[%clk 0:01:41]} 33. h5 {[%clk 0:00:15]}  R8c4 {[%clk 0:01:40]} 34. Rd3 {[%clk 0:00:13]}  Rxb2 {[%clk 0:01:39]} 35. h6 {[%clk 0:00:13]}  g6 {[%clk 0:01:38]} 36. Qf4 {[%clk 0:00:12]}  Bb6 {[%clk 0:01:38]} 37. Qh4 {[%clk 0:00:10]}  Rcc2 {[%clk 0:01:28]} 38. Rf1 {[%clk 0:00:08]}  a5 {[%clk 0:01:26]} 39. Bg5 {[%clk 0:00:08]}  a4 {[%clk 0:01:12]} 40. Be7 {[%clk 0:00:08]}  Qe8 {[%clk 0:01:05]} 41. Bb4 {[%clk 0:00:08]}  Bd8 {[%clk 0:01:04]} 42. Qf4 {[%clk 0:00:07]}  g5 {[%clk 0:01:01]} 43. Qf3 {[%clk 0:00:06]}  Qg6 {[%clk 0:01:01]} 44. Rc3 {[%clk 0:00:06]}  g4 {[%clk 0:01:00]} 45. Qd3 {[%clk 0:00:05]}  f4 {[%clk 0:00:56]} 46. Qxg6+ {[%clk 0:00:02]}  hxg6 {[%clk 0:00:56]} 47. gxf4 {[%clk 0:00:03]}  Rxc3 {[%clk 0:00:55]} 48. Bxc3 {[%clk 0:00:04]}  Rb3 {[%clk 0:00:55]} 49. Bb4 {[%clk 0:00:04]}  Kh7 {[%clk 0:00:53]} 50. Rc1 {[%clk 0:00:05]}  Rb2 {[%clk 0:00:51]} 51. Rc6 {[%clk 0:00:05]}  Bh4 {[%clk 0:00:50]} 52. Rxe6 {[%clk 0:00:05]}  Rxf2+ {[%clk 0:00:50]} 53. Kg1 {[%clk 0:00:05]}  Rxf4 {[%clk 0:00:49]} 54. Bc5 {[%clk 0:00:03]}  Re4 {[%clk 0:00:46]} 55. Rd6 {[%clk 0:00:02]}  Re1+ {[%clk 0:00:43]} 56. Kg2 {[%clk 0:00:03]}  Re2+ {[%clk 0:00:44]} 57. Kg1 {[%clk 0:00:03]}  Bg5 {[%clk 0:00:43]} 58. Rxd5 {[%clk 0:00:03]}  Be3+ {[%clk 0:00:42]} 59. Kf1 {[%clk 0:00:03]}  Rf2+ {[%clk 0:00:42]} 60. Ke1 {[%clk 0:00:04]}  g3 {[%clk 0:00:42]} 61. Rd7+ {[%clk 0:00:03]}  Kxh6 {[%clk 0:00:42]} 62. Bf8+ {[%clk 0:00:03]}  Kh5 {[%clk 0:00:42]} 63. Rh7+ {[%clk 0:00:03]}  Kg4 {[%clk 0:00:42]} 64. Rg7 {[%clk 0:00:01]}  g5 {[%clk 0:00:42]} 65. Be7 {[%clk 0:00:01]}  Ra2 {[%clk 0:00:36]} 0-1


[Site "https://www.chess.com"]

[Event "Titled Tuesday Blitz July 05 Early 2022"]
[White "Sadykov, Ramil"]
[Black "Cabarkapa, Novak"]
[WhiteFideId "24113590"]
[BlackFideId "943746"]
[WhiteElo "2226"]
[BlackElo "2390"]
[Result "0-1"]
[Round "07"]
[TimeControl "180+1"]
[Date "2022.07.05"]
[WhiteClock "0:00:01"]
[BlackClock "0:02:03"]

1. e4 {[%clk 0:02:25]}  e6 {[%clk 0:02:56]} 2. d3 {[%clk 0:02:25]}  d5 {[%clk 0:02:57]} 3. Nd2 {[%clk 0:02:25]}  Nc6 {[%clk 0:02:57]} 4. Ngf3 {[%clk 0:02:23]}  Nf6 {[%clk 0:02:57]} 5. g3 {[%clk 0:02:24]}  dxe4 {[%clk 0:02:57]} 6. dxe4 {[%clk 0:02:25]}  e5 {[%clk 0:02:58]} 7. Bg2 {[%clk 0:02:25]}  Bc5 {[%clk 0:02:58]} 8. O-O {[%clk 0:02:25]}  a5 {[%clk 0:02:59]} 9. Qe2 {[%clk 0:02:25]}  Qe7 {[%clk 0:02:58]} 10. c3 {[%clk 0:02:25]}  O-O {[%clk 0:02:57]} 11. a4 {[%clk 0:02:25]}  b6 {[%clk 0:02:57]} 12. Nc4 {[%clk 0:02:25]}  Ba6 {[%clk 0:02:57]} 13. b3 {[%clk 0:02:25]}  Ne8 {[%clk 0:02:54]} 14. Kh1 {[%clk 0:02:20]}  Nd6 {[%clk 0:02:54]} 15. Nfd2 {[%clk 0:02:15]}  Nd8 {[%clk 0:02:54]} 16. f4 {[%clk 0:02:10]}  Nxc4 {[%clk 0:02:53]} 17. bxc4 {[%clk 0:02:05]}  exf4 {[%clk 0:02:50]} 18. gxf4 {[%clk 0:02:02]}  Bb7 {[%clk 0:02:50]} 19. Nb3 {[%clk 0:01:58]}  Re8 {[%clk 0:02:45]} 20. e5 {[%clk 0:01:50]}  Bxg2+ {[%clk 0:02:42]} 21. Qxg2 {[%clk 0:01:51]}  Rc8 {[%clk 0:02:38]} 22. Bd2 {[%clk 0:01:33]}  Qe6 {[%clk 0:02:30]} 23. Nxc5 {[%clk 0:01:24]}  bxc5 {[%clk 0:02:29]} 24. Qd5 {[%clk 0:01:11]}  Qf5 {[%clk 0:02:29]} 25. Rae1 {[%clk 0:00:59]}  Ne6 {[%clk 0:02:27]} 26. Qe4 {[%clk 0:00:54]}  g6 {[%clk 0:02:22]} 27. Qxf5 {[%clk 0:00:37]}  gxf5 {[%clk 0:02:23]} 28. Be3 {[%clk 0:00:32]}  Kf8 {[%clk 0:02:19]} 29. Rb1 {[%clk 0:00:31]}  Rb8 {[%clk 0:02:18]} 30. Rb5 {[%clk 0:00:30]}  Rxb5 {[%clk 0:02:17]} 31. cxb5 {[%clk 0:00:29]}  Rd8 {[%clk 0:02:15]} 32. Rb1 {[%clk 0:00:04]}  Rd3 {[%clk 0:02:15]} 33. Bf2 {[%clk 0:00:04]}  Rxc3 {[%clk 0:02:12]} 34. Be1 {[%clk 0:00:04]}  Rc4 {[%clk 0:02:10]} 35. Bxa5 {[%clk 0:00:04]}  Rxa4 {[%clk 0:02:10]} 36. Bd2 {[%clk 0:00:03]}  Rd4 {[%clk 0:02:10]} 37. Be3 {[%clk 0:00:03]}  Re4 {[%clk 0:02:11]} 38. Rb3 {[%clk 0:00:03]}  c4 {[%clk 0:02:10]} 39. Rc3 {[%clk 0:00:04]}  Ke8 {[%clk 0:02:08]} 40. Kg2 {[%clk 0:00:03]}  Nxf4+ {[%clk 0:02:04]} 41. Bxf4 {[%clk 0:00:03]}  Rxf4 {[%clk 0:02:05]} 42. Rh3 {[%clk 0:00:04]}  Ke7 {[%clk 0:02:02]} 43. Rxh7 {[%clk 0:00:02]}  c3 {[%clk 0:02:03]} 44. Rh3 {[%clk 0:00:01]}  Rc4 {[%clk 0:02:03]} 0-1


[Site "https://www.chess.com"]

[Event "Titled Tuesday Blitz July 05 Early 2022"]
[White "So, Wesley"]
[Black "Hansen, Eric"]
[WhiteFideId "5202213"]
[BlackFideId "2606771"]
[WhiteElo "2763"]
[BlackElo "2568"]
[Result "1/2-1/2"]
[Round "07"]
[TimeControl "180+1"]
[Date "2022.07.05"]
[WhiteClock "0:00:39"]
[BlackClock "0:00:20"]

1. e4 {[%clk 0:03:00]}  c5 {[%clk 0:02:57]} 2. Nf3 {[%clk 0:03:00]}  e6 {[%clk 0:02:57]} 3. g3 {[%clk 0:02:59]}  Nc6 {[%clk 0:02:57]} 4. Bg2 {[%clk 0:03:00]}  e5 {[%clk 0:02:54]} 5. O-O {[%clk 0:02:58]}  Nf6 {[%clk 0:02:54]} 6. c3 {[%clk 0:02:42]}  d6 {[%clk 0:02:50]} 7. d4 {[%clk 0:02:26]}  cxd4 {[%clk 0:02:45]} 8. cxd4 {[%clk 0:02:27]}  Bg4 {[%clk 0:02:45]} 9. Be3 {[%clk 0:02:26]}  Be7 {[%clk 0:02:44]} 10. Nc3 {[%clk 0:02:21]}  O-O {[%clk 0:02:44]} 11. h3 {[%clk 0:02:21]}  Bxf3 {[%clk 0:02:43]} 12. Bxf3 {[%clk 0:02:21]}  exd4 {[%clk 0:02:43]} 13. Bxd4 {[%clk 0:02:22]}  Nxd4 {[%clk 0:02:44]} 14. Qxd4 {[%clk 0:02:22]}  Qa5 {[%clk 0:02:20]} 15. Rfd1 {[%clk 0:02:16]}  Rac8 {[%clk 0:02:16]} 16. Rac1 {[%clk 0:02:10]}  a6 {[%clk 0:02:16]} 17. Qd2 {[%clk 0:02:06]}  Rfe8 {[%clk 0:01:56]} 18. Kg2 {[%clk 0:02:02]}  Bf8 {[%clk 0:01:37]} 19. Rc2 {[%clk 0:01:54]}  Rc5 {[%clk 0:01:31]} 20. a3 {[%clk 0:01:53]}  Rce5 {[%clk 0:01:25]} 21. b4 {[%clk 0:01:31]}  Qd8 {[%clk 0:01:23]} 22. Qd3 {[%clk 0:01:27]}  g6 {[%clk 0:01:17]} 23. Re2 {[%clk 0:01:23]}  h5 {[%clk 0:01:16]} 24. h4 {[%clk 0:01:21]}  Qc8 {[%clk 0:01:14]} 25. Kg1 {[%clk 0:01:17]}  b5 {[%clk 0:01:07]} 26. Bg2 {[%clk 0:01:16]}  Qb8 {[%clk 0:01:04]} 27. f4 {[%clk 0:01:12]}  R5e6 {[%clk 0:00:57]} 28. Bf3 {[%clk 0:01:04]}  Bg7 {[%clk 0:00:51]} 29. Kg2 {[%clk 0:01:03]}  Rc8 {[%clk 0:00:49]} 30. Rc2 {[%clk 0:01:02]}  Rc4 {[%clk 0:00:48]} 31. Nd5 {[%clk 0:00:58]}  Nxd5 {[%clk 0:00:47]} 32. exd5 {[%clk 0:00:43]}  Re3 {[%clk 0:00:46]} 33. Qxe3 {[%clk 0:00:42]}  Rxc2+ {[%clk 0:00:46]} 34. Rd2 {[%clk 0:00:41]}  Qc8 {[%clk 0:00:46]} 35. Rxc2 {[%clk 0:00:39]}  Qxc2+ {[%clk 0:00:46]} 36. Kh3 {[%clk 0:00:40]}  Qf5+ {[%clk 0:00:42]} 37. Kg2 {[%clk 0:00:39]}  Qc2+ {[%clk 0:00:42]} 38. Kh3 {[%clk 0:00:40]}  Qf5+ {[%clk 0:00:19]} 39. Kh2 {[%clk 0:00:39]}  Qc2+ {[%clk 0:00:20]} 40. Kh3 {[%clk 0:00:39]} 1/2-1/2


[Site "https://www.chess.com"]

[Event "Titled Tuesday Blitz July 05 Early 2022"]
[White "Svane, Rasmus"]
[Black "Tristan, Leonardo"]
[WhiteFideId "4657101"]
[BlackFideId "113816"]
[WhiteElo "2674"]
[BlackElo "2404"]
[Result "0-1"]
[Round "07"]
[TimeControl "180+1"]
[Date "2022.07.05"]
[WhiteClock "0:00:03"]
[BlackClock "0:00:03"]

1. Nf3 {[%clk 0:03:00]}  d5 {[%clk 0:03:00]} 2. g3 {[%clk 0:03:01]}  Nf6 {[%clk 0:03:00]} 3. Bg2 {[%clk 0:03:01]}  Bf5 {[%clk 0:03:01]} 4. O-O {[%clk 0:03:01]}  e6 {[%clk 0:03:01]} 5. c4 {[%clk 0:03:02]}  c6 {[%clk 0:03:02]} 6. Qb3 {[%clk 0:03:02]}  Qb6 {[%clk 0:03:01]} 7. d3 {[%clk 0:03:02]}  dxc4 {[%clk 0:02:58]} 8. Qxc4 {[%clk 0:03:02]}  Nbd7 {[%clk 0:02:59]} 9. b3 {[%clk 0:02:46]}  Be7 {[%clk 0:02:58]} 10. Bb2 {[%clk 0:02:45]}  O-O {[%clk 0:02:58]} 11. Nbd2 {[%clk 0:02:46]}  h6 {[%clk 0:02:58]} 12. Qc2 {[%clk 0:02:34]}  a5 {[%clk 0:02:57]} 13. Nc4 {[%clk 0:02:35]}  Qc7 {[%clk 0:02:57]} 14. a3 {[%clk 0:02:35]}  Bh7 {[%clk 0:02:57]} 15. Rfe1 {[%clk 0:02:33]}  Rfe8 {[%clk 0:02:55]} 16. e4 {[%clk 0:02:28]}  Red8 {[%clk 0:02:37]} 17. Rad1 {[%clk 0:02:17]}  Qb8 {[%clk 0:01:59]} 18. h3 {[%clk 0:02:06]}  Qa7 {[%clk 0:01:59]} 19. Bc3 {[%clk 0:01:52]}  a4 {[%clk 0:01:51]} 20. b4 {[%clk 0:01:51]}  Ne8 {[%clk 0:01:44]} 21. Qb2 {[%clk 0:01:50]}  Bf6 {[%clk 0:01:42]} 22. Bxf6 {[%clk 0:01:44]}  Nexf6 {[%clk 0:01:42]} 23. Nfd2 {[%clk 0:01:27]}  Nb6 {[%clk 0:01:38]} 24. d4 {[%clk 0:01:20]}  Nxc4 {[%clk 0:01:32]} 25. Nxc4 {[%clk 0:01:21]}  Qa6 {[%clk 0:01:23]} 26. Qc3 {[%clk 0:01:19]}  Rac8 {[%clk 0:01:20]} 27. Ne5 {[%clk 0:00:57]}  Ne8 {[%clk 0:01:08]} 28. Bf1 {[%clk 0:00:52]}  Qa7 {[%clk 0:01:06]} 29. Qf3 {[%clk 0:00:40]}  Nd6 {[%clk 0:01:06]} 30. d5 {[%clk 0:00:40]}  cxd5 {[%clk 0:00:41]} 31. exd5 {[%clk 0:00:41]}  Re8 {[%clk 0:00:41]} 32. dxe6 {[%clk 0:00:40]}  Rxe6 {[%clk 0:00:41]} 33. Ng4 {[%clk 0:00:12]}  Be4 {[%clk 0:00:35]} 34. Qf4 {[%clk 0:00:11]}  Qb8 {[%clk 0:00:13]} 35. Bg2 {[%clk 0:00:11]}  Bxg2 {[%clk 0:00:12]} 36. Rxe6 {[%clk 0:00:11]}  fxe6 {[%clk 0:00:12]} 37. Rxd6 {[%clk 0:00:10]}  Bxh3 {[%clk 0:00:09]} 38. Ne3 {[%clk 0:00:06]}  Rf8 {[%clk 0:00:09]} 39. Qe5 {[%clk 0:00:06]}  Qc7 {[%clk 0:00:05]} 40. g4 {[%clk 0:00:03]}  Qc1+ {[%clk 0:00:04]} 41. Rd1 {[%clk 0:00:03]}  Qxa3 {[%clk 0:00:02]} 42. Qg3 {[%clk 0:00:04]}  Bxg4 {[%clk 0:00:02]} 43. Qxg4 {[%clk 0:00:04]}  Qb3 {[%clk 0:00:02]} 44. Nc4 {[%clk 0:00:03]}  a3 {[%clk 0:00:02]} 45. Qxe6+ {[%clk 0:00:03]}  Kh8 {[%clk 0:00:02]} 46. Qe7 {[%clk 0:00:03]}  Rg8 {[%clk 0:00:02]} 47. Ne5 {[%clk 0:00:03]}  Qxd1+ {[%clk 0:00:02]} 48. Kg2 {[%clk 0:00:03]}  Qc2 {[%clk 0:00:03]} 49. Qf7 {[%clk 0:00:03]}  Qe4+ {[%clk 0:00:03]} 50. f3 {[%clk 0:00:03]}  Qxe5 {[%clk 0:00:03]} 0-1


[Site "https://www.chess.com"]

[Event "Titled Tuesday Blitz July 05 Early 2022"]
[White "Taboas Rodriguez, Daniel"]
[Black "Guz, Ari"]
[WhiteFideId "2208466"]
[BlackFideId "2825759"]
[WhiteElo "2429"]
[BlackElo "1913"]
[Result "0-1"]
[Round "07"]
[TimeControl "180+1"]
[Date "2022.07.05"]
[WhiteClock "0:01:10"]
[BlackClock "0:00:36"]

1. d4 {[%clk 0:02:59]}  d5 {[%clk 0:02:55]} 2. Nf3 {[%clk 0:03:00]}  Bg4 {[%clk 0:02:53]} 3. Ne5 {[%clk 0:02:58]}  Bf5 {[%clk 0:02:53]} 4. c4 {[%clk 0:02:58]}  c6 {[%clk 0:02:50]} 5. Qb3 {[%clk 0:02:57]}  Qc8 {[%clk 0:02:49]} 6. cxd5 {[%clk 0:02:55]}  cxd5 {[%clk 0:02:49]} 7. Nc3 {[%clk 0:02:55]}  e6 {[%clk 0:02:44]} 8. Bf4 {[%clk 0:02:52]}  Ne7 {[%clk 0:02:34]} 9. e3 {[%clk 0:02:51]}  Nec6 {[%clk 0:02:30]} 10. Bb5 {[%clk 0:02:47]}  Be7 {[%clk 0:02:24]} 11. O-O {[%clk 0:02:43]}  O-O {[%clk 0:02:24]} 12. Rfc1 {[%clk 0:02:41]}  a6 {[%clk 0:02:19]} 13. Bxc6 {[%clk 0:02:40]}  bxc6 {[%clk 0:02:12]} 14. Na4 {[%clk 0:02:39]}  Ra7 {[%clk 0:02:07]} 15. Qb6 {[%clk 0:02:27]}  Rb7 {[%clk 0:01:55]} 16. Nxc6 {[%clk 0:02:27]}  Nxc6 {[%clk 0:01:52]} 17. Qxc6 {[%clk 0:02:25]}  Qxc6 {[%clk 0:01:36]} 18. Rxc6 {[%clk 0:02:26]}  g5 {[%clk 0:01:35]} 19. Bg3 {[%clk 0:02:24]}  h5 {[%clk 0:01:30]} 20. Rac1 {[%clk 0:02:24]}  h4 {[%clk 0:01:29]} 21. Bd6 {[%clk 0:02:20]}  Bxd6 {[%clk 0:01:30]} 22. Rxd6 {[%clk 0:02:21]}  Rb4 {[%clk 0:01:28]} 23. b3 {[%clk 0:02:20]}  Bd3 {[%clk 0:01:26]} 24. Rc5 {[%clk 0:02:06]}  Rfb8 {[%clk 0:01:25]} 25. h3 {[%clk 0:02:03]}  Rxa4 {[%clk 0:01:20]} 26. bxa4 {[%clk 0:02:04]}  Rb1+ {[%clk 0:01:20]} 27. Kh2 {[%clk 0:02:04]}  Rb2 {[%clk 0:01:21]} 28. Rc3 {[%clk 0:01:58]}  Be4 {[%clk 0:01:09]} 29. f3 {[%clk 0:01:56]}  Bxf3 {[%clk 0:01:10]} 30. Kg1 {[%clk 0:01:52]}  Rxg2+ {[%clk 0:01:09]} 31. Kf1 {[%clk 0:01:52]}  Rxa2 {[%clk 0:01:10]} 32. a5 {[%clk 0:01:34]}  Rxa5 {[%clk 0:01:08]} 33. Kf2 {[%clk 0:01:34]}  Be4 {[%clk 0:01:04]} 34. Rcc6 {[%clk 0:01:30]}  Ra2+ {[%clk 0:01:03]} 35. Kg1 {[%clk 0:01:30]}  a5 {[%clk 0:00:56]} 36. Rc7 {[%clk 0:01:26]}  Rg2+ {[%clk 0:00:52]} 37. Kf1 {[%clk 0:01:25]}  Rg3 {[%clk 0:00:51]} 38. Rdd7 {[%clk 0:01:20]}  Bg6 {[%clk 0:00:51]} 39. Ra7 {[%clk 0:01:18]}  Rxe3 {[%clk 0:00:50]} 40. Kg2 {[%clk 0:01:13]}  Ra3 {[%clk 0:00:50]} 41. Ra8+ {[%clk 0:01:10]}  Kg7 {[%clk 0:00:50]} 42. Rda7 {[%clk 0:01:11]}  Be4+ {[%clk 0:00:44]} 43. Kh2 {[%clk 0:01:09]}  Ra2+ {[%clk 0:00:44]} 44. Kg1 {[%clk 0:01:09]}  Rg2+ {[%clk 0:00:43]} 45. Kf1 {[%clk 0:01:09]}  Rg3 {[%clk 0:00:41]} 46. Rxa5 {[%clk 0:01:09]}  Rxh3 {[%clk 0:00:41]} 47. Ra3 {[%clk 0:01:10]}  Rh1+ {[%clk 0:00:39]} 48. Kf2 {[%clk 0:01:10]}  g4 {[%clk 0:00:39]} 49. Ke3 {[%clk 0:01:09]}  g3 {[%clk 0:00:39]} 50. Ra1 {[%clk 0:01:08]}  g2 {[%clk 0:00:38]} 51. Kf2 {[%clk 0:01:09]}  h3 {[%clk 0:00:36]} 52. Rg1 {[%clk 0:01:09]}  h2 {[%clk 0:00:35]} 53. Rxg2+ {[%clk 0:01:08]}  Bxg2 {[%clk 0:00:36]} 54. Kxg2 {[%clk 0:01:09]}  Rd1 {[%clk 0:00:36]} 55. Kxh2 {[%clk 0:01:10]}  Rxd4 {[%clk 0:00:36]} 0-1


[Site "https://www.chess.com"]

[Event "Titled Tuesday Blitz July 05 Early 2022"]
[White "Vasquez Schroeder, Rodrigo"]
[Black "Papp, Levente"]
[WhiteFideId "3400042"]
[BlackFideId "751243"]
[WhiteElo "2567"]
[BlackElo "2308"]
[Result "1/2-1/2"]
[Round "07"]
[TimeControl "180+1"]
[Date "2022.07.05"]
[WhiteClock "0:01:56"]
[BlackClock "0:00:22"]

1. e4 {[%clk 0:03:00]}  e6 {[%clk 0:03:00]} 2. d4 {[%clk 0:03:00]}  d5 {[%clk 0:03:00]} 3. e5 {[%clk 0:03:00]}  c5 {[%clk 0:02:58]} 4. c3 {[%clk 0:03:00]}  Nc6 {[%clk 0:02:59]} 5. Nf3 {[%clk 0:03:01]}  Qb6 {[%clk 0:02:59]} 6. a3 {[%clk 0:03:01]}  Nh6 {[%clk 0:02:59]} 7. b4 {[%clk 0:03:00]}  cxd4 {[%clk 0:02:59]} 8. cxd4 {[%clk 0:03:01]}  Nf5 {[%clk 0:03:00]} 9. Bb2 {[%clk 0:03:01]}  Bd7 {[%clk 0:02:58]} 10. Be2 {[%clk 0:03:01]}  a5 {[%clk 0:02:58]} 11. b5 {[%clk 0:03:01]}  a4 {[%clk 0:02:58]} 12. bxc6 {[%clk 0:02:58]}  bxc6 {[%clk 0:02:49]} 13. Bc3 {[%clk 0:02:57]}  g5 {[%clk 0:02:41]} 14. g4 {[%clk 0:02:57]}  Ne7 {[%clk 0:02:29]} 15. Bd2 {[%clk 0:02:54]}  h5 {[%clk 0:02:27]} 16. Rg1 {[%clk 0:02:53]}  hxg4 {[%clk 0:02:25]} 17. Rxg4 {[%clk 0:02:53]}  Nf5 {[%clk 0:02:25]} 18. Nc3 {[%clk 0:02:53]}  c5 {[%clk 0:02:24]} 19. Rb1 {[%clk 0:02:53]}  Qa7 {[%clk 0:02:19]} 20. Nb5 {[%clk 0:02:53]}  Bxb5 {[%clk 0:02:11]} 21. Bxb5+ {[%clk 0:02:52]}  Kd8 {[%clk 0:02:12]} 22. Bxg5+ {[%clk 0:02:51]}  Be7 {[%clk 0:02:12]} 23. Bxe7+ {[%clk 0:02:50]}  Kxe7 {[%clk 0:02:13]} 24. Bd3 {[%clk 0:02:50]}  Nh6 {[%clk 0:01:50]} 25. Rh4 {[%clk 0:02:49]}  Rab8 {[%clk 0:01:27]} 26. Qd2 {[%clk 0:02:46]}  Rxb1+ {[%clk 0:01:24]} 27. Bxb1 {[%clk 0:02:46]}  Qb8 {[%clk 0:01:16]} 28. Bc2 {[%clk 0:02:44]}  Qb2 {[%clk 0:01:15]} 29. dxc5 {[%clk 0:02:39]}  Qxa3 {[%clk 0:01:06]} 30. Rxa4 {[%clk 0:02:38]}  Qxf3 {[%clk 0:01:04]} 31. Qg5+ {[%clk 0:02:17]}  Kd7 {[%clk 0:00:50]} 32. Ra7+ {[%clk 0:02:16]}  Kc6 {[%clk 0:00:50]} 33. Qe7 {[%clk 0:02:09]}  Qc3+ {[%clk 0:00:46]} 34. Kd1 {[%clk 0:02:09]}  Qd4+ {[%clk 0:00:42]} 35. Kc1 {[%clk 0:02:09]}  Qf4+ {[%clk 0:00:40]} 36. Kd1 {[%clk 0:02:08]}  Qf3+ {[%clk 0:00:23]} 37. Ke1 {[%clk 0:01:57]}  Qc3+ {[%clk 0:00:24]} 38. Kf1 {[%clk 0:01:58]}  Qc4+ {[%clk 0:00:22]} 39. Ke1 {[%clk 0:01:56]}  Qc3+ {[%clk 0:00:22]} 1/2-1/2


[Site "https://www.chess.com"]

[Event "Titled Tuesday Blitz July 05 Early 2022"]
[White "Zhalmakhanov, Ramazan"]
[Black "Timofeev, Artyom"]
[WhiteFideId "13706357"]
[BlackFideId "4140419"]
[WhiteElo "2397"]
[BlackElo "2578"]
[Result "0-1"]
[Round "07"]
[TimeControl "180+1"]
[Date "2022.07.05"]
[WhiteClock "0:00:02"]
[BlackClock "0:00:43"]

1. e4 {[%clk 0:03:00]}  c6 {[%clk 0:02:59]} 2. d4 {[%clk 0:03:00]}  d5 {[%clk 0:02:59]} 3. f3 {[%clk 0:03:00]}  g6 {[%clk 0:02:49]} 4. Nc3 {[%clk 0:02:58]}  Bg7 {[%clk 0:02:48]} 5. Be3 {[%clk 0:02:59]}  Qb6 {[%clk 0:02:46]} 6. a3 {[%clk 0:02:35]}  dxe4 {[%clk 0:02:45]} 7. fxe4 {[%clk 0:02:34]}  e5 {[%clk 0:02:45]} 8. Nf3 {[%clk 0:01:53]}  exd4 {[%clk 0:02:26]} 9. Nxd4 {[%clk 0:01:40]}  Qc7 {[%clk 0:02:02]} 10. Bc4 {[%clk 0:01:39]}  Nf6 {[%clk 0:02:01]} 11. O-O {[%clk 0:01:03]}  O-O {[%clk 0:02:01]} 12. h3 {[%clk 0:00:57]}  Nbd7 {[%clk 0:02:00]} 13. Nf3 {[%clk 0:00:49]}  Nb6 {[%clk 0:01:54]} 14. Bb3 {[%clk 0:00:48]}  Be6 {[%clk 0:01:54]} 15. Bxe6 {[%clk 0:00:45]}  fxe6 {[%clk 0:01:54]} 16. Qe2 {[%clk 0:00:46]}  Qe7 {[%clk 0:01:49]} 17. Rad1 {[%clk 0:00:36]}  Nfd7 {[%clk 0:01:46]} 18. Bd4 {[%clk 0:00:33]}  Bxd4+ {[%clk 0:01:41]} 19. Nxd4 {[%clk 0:00:34]}  Ne5 {[%clk 0:01:40]} 20. b3 {[%clk 0:00:18]}  Nbd7 {[%clk 0:01:21]} 21. Qe3 {[%clk 0:00:16]}  a6 {[%clk 0:01:06]} 22. a4 {[%clk 0:00:14]}  c5 {[%clk 0:01:05]} 23. Nde2 {[%clk 0:00:13]}  Nc6 {[%clk 0:01:04]} 24. Rxf8+ {[%clk 0:00:06]}  Rxf8 {[%clk 0:01:03]} 25. Qd2 {[%clk 0:00:05]}  Nde5 {[%clk 0:01:00]} 26. Qe3 {[%clk 0:00:04]}  Nb4 {[%clk 0:00:57]} 27. Rd2 {[%clk 0:00:04]}  Nbc6 {[%clk 0:00:55]} 28. Nd1 {[%clk 0:00:03]}  b5 {[%clk 0:00:45]} 29. axb5 {[%clk 0:00:03]}  axb5 {[%clk 0:00:46]} 30. Nf2 {[%clk 0:00:04]}  c4 {[%clk 0:00:46]} 31. Nf4 {[%clk 0:00:02]}  Qf6 {[%clk 0:00:43]} 0-1


[Site "https://www.chess.com"]

[Event "Titled Tuesday Blitz July 05 Early 2022"]
[White "Cabarkapa, Novak"]
[Black "Svane, Rasmus"]
[WhiteFideId "943746"]
[BlackFideId "4657101"]
[WhiteElo "2390"]
[BlackElo "2674"]
[Result "0-1"]
[Round "08"]
[TimeControl "180+1"]
[Date "2022.07.05"]
[WhiteClock "0:02:00"]
[BlackClock "0:02:10"]

1. d4 {[%clk 0:03:00]}  Nf6 {[%clk 0:03:00]} 2. Nc3 {[%clk 0:03:00]}  d5 {[%clk 0:03:00]} 3. Bf4 {[%clk 0:03:01]}  c5 {[%clk 0:03:01]} 4. e3 {[%clk 0:03:01]}  cxd4 {[%clk 0:03:01]} 5. exd4 {[%clk 0:03:02]}  a6 {[%clk 0:03:01]} 6. Nf3 {[%clk 0:03:02]}  Nc6 {[%clk 0:03:02]} 7. Ne5 {[%clk 0:03:03]}  Bd7 {[%clk 0:03:03]} 8. g4 {[%clk 0:03:03]}  e6 {[%clk 0:02:48]} 9. Nxc6 {[%clk 0:02:58]}  Bxc6 {[%clk 0:02:47]} 10. Qf3 {[%clk 0:02:55]}  Bb4 {[%clk 0:02:37]} 11. O-O-O {[%clk 0:02:54]}  Rc8 {[%clk 0:02:37]} 12. Kb1 {[%clk 0:02:45]}  Bxc3 {[%clk 0:02:36]} 13. bxc3 {[%clk 0:02:28]}  Ne4 {[%clk 0:02:25]} 14. Ka1 {[%clk 0:02:26]}  Bb5 {[%clk 0:02:24]} 15. Bd3 {[%clk 0:02:09]}  Nxc3 {[%clk 0:02:20]} 16. Bxb5+ {[%clk 0:02:05]}  axb5 {[%clk 0:02:18]} 17. Rb1 {[%clk 0:02:01]}  Qa5 {[%clk 0:02:10]} 18. Rb2 {[%clk 0:02:00]}  Ra8 {[%clk 0:02:10]} 0-1


[Site "https://www.chess.com"]